[Event "Grand Prix Romania 1st Stage 2024"]
[Site "Bucuresti"]
[Date "2024.03.24"]
[Round "5.16"]
[White "Filip, Andrei"]
[Black "Baltag, Iulian"]
[Result "1/2-1/2"]
[ECO "B33"]
[WhiteElo "2289"]
[BlackElo "2412"]
[Annotator "TA"]
[PlyCount "58"]
[EventDate "2024.03.20"]
[EventType "swiss"]
[EventCountry "ROU"]
[SourceTitle "playchess.com"]
[Source "ChessBase"]
[SourceQuality "1"]
[TimeControl "900+5"]

{[%evp 24,58,26,27,14,11,38,37,34,33,34,20,24,0,0,0,0,0,0,0,0,0,23,18,72,-41,-33,-34,-5,-33,-37,-127,-99,-138,17,10,19]} 1. e4 {[%emt 0:00:02]} c5 {[%emt 0:00:01]} 2. Nf3 {[%emt 0:00:02]} Nc6 {[%emt 0:00:01]} 3. d4 {[%emt 0:00:01]} cxd4 {[%emt 0:00:02]} 4. Nxd4 {[%emt 0:00:02]} Qb6 {[%emt 0:00:15]} 5. Nb3 {[%emt 0:00:35]} Nf6 {[%emt 0:00:02]} 6. Nc3 {[%emt 0:00:25]} e6 {[%emt 0:00:01]} 7. a3 {[%emt 0:00:22]} Be7 {[%emt 0:00:18]} 8. Be3 {[%emt 0:00:41]} Qc7 {[%emt 0:00:01]} 9. f4 {[%emt 0:00:59]} d6 {[%emt 0:00:05]} 10. Be2 {[%emt 0:00:28]} a6 {[%emt 0:00:07]} 11. O-O {[%emt 0:00:31]} b5 {[%emt 0:00:16]} 12. Bf3 {[%emt 0:00:44]} Bb7 {[%emt 0:00:02]} 13. Qe1 {[%emt 0:00:04]} O-O {[%emt 0:00:19]} 14. Rd1 {[%emt 0:00:12]} b4 {[%emt 0:00:24]} 15. axb4 {[%emt 0:00:11]} Nxb4 {[%emt 0:00:03] White is slightly better.} 16. Qf2 {[%emt 0:02:55][%cal Ob3a5]} Rac8 {[%emt 0:01:20]} 17. Bb6 {[%emt 0:00:29]} Qb8 {[%emt 0:00:05][%cal Ob4c2]} 18. Na5 {[%emt 0:00:16]} Ba8 {[%emt 0:00:29][%cal Ob4c2]} 19. Ba7 {[%emt 0:00:02]} Qc7 {[%emt 0:00:06][%cal Od6d5]} 20. Bb6 {[%emt 0:00:50]} Qb8 {[%emt 0:00:01][%cal Ob4c2]} 21. Ba7 {[%emt 0:00:54]} Qc7 {[%emt 0:00:36][%cal Od6d5]} 22. Bb6 {[%emt 0:00:10]} Qd7 {[%emt 0:01:35]} 23. Rd4 {[%emt 0:02:02]} d5 {[%emt 0:00:32]} (23... Nc6 $1 $11 {keeps the balance.} 24. Rd3 e5) 24. exd5 {[%emt 0:00:25]} (24. e5 $16 Ne8 25. Rd2) 24... exd5 {[%emt 0:00:20]} 25. Rd2 {[%emt 0:00:46]} Qe6 {[%emt 0:00:29]} 26. Re1 {[%emt 0:00:29]} Ne4 {[%emt 0:00:03]} 27. Nxe4 {[%emt 0:00:08]} ({White should play} 27. Bxe4 $15 dxe4 28. Be3) 27... dxe4 $17 {[%emt 0:00:02]} 28. c3 {[%emt 0:00:01] [#]} Qg6 $2 {[%emt 0:00:40]} 29. f5 $11 {[%emt 0:00:42]} Qxf5 {[%emt 0:03:18] Weighted Error Value: White=0.22 (precise) /Black=0.32.  Mistake:       	White=2     	Black=2      Inaccurate:     	White=2     	Black=2      OK:         	White=6     	Black=5      Best:        	---       	Black=2} ({Wrong is} 29... Qg5 $2 30. Bxe4 Nc6 31. Nc4 $18) 1/2-1/2

[Event "Grand Prix Romania 1st Stage 2024"]
[Site "Bucuresti"]
[Date "2024.03.24"]
[Round "5.17"]
[White "Korobov, Anton"]
[Black "Petrescu, Georgian-Dorin"]
[Result "1-0"]
[ECO "E73"]
[WhiteElo "2662"]
[BlackElo "2064"]
[Annotator "TA"]
[PlyCount "47"]
[EventDate "2024.03.20"]
[EventType "swiss"]
[EventCountry "ROU"]
[SourceTitle "playchess.com"]
[Source "ChessBase"]
[SourceQuality "1"]
[TimeControl "900+5"]

{[%evp 12,47,45,35,69,62,68,49,65,70,86,85,105,62,82,69,148,112,235,202,543,560,588,591,565,587,564,513,851,823,848,843,1001,1028,1033,1027,1168,1100]} 1. c4 {[%emt 0:00:03]} Nf6 {[%emt 0:00:04]} 2. Nc3 {[%emt 0:00:02]} g6 {[%emt 0:00:07]} 3. e4 {[%emt 0:00:03]} d6 {[%emt 0:00:03]} 4. d4 {[%emt 0:00:03][%cal Bd2d4,Bd4d5][%mdl 32]} Bg7 {[%emt 0:00:10]} 5. Be2 {[%emt 0:00:02]} O-O {[%emt 0:00:05]} 6. Bg5 {[%emt 0:00:03]} Nc6 {[%emt 0:00:10]} 7. d5 {[%emt 0:00:20]} Nb8 {[%emt 0:00:12]} 8. Nf3 {[%emt 0:00:09]} Nbd7 {[%emt 0:00:35]} 9. O-O {[%emt 0:00:07]} h6 {[%emt 0:00:35] White is slightly better.} 10. Be3 {[%emt 0:00:16]} e5 {[%emt 0:00:12]} 11. dxe6 {[%emt 0:00:24]} fxe6 {[%emt 0:00:02]} 12. Qc2 {[%emt 0:00:30][%cal Oe4e5] Black must now prevent e5!} e5 {[%emt 0:01:23]} 13. Rfd1 {[%emt 0:00:13][%cal Oc4c5]} a5 {[%emt 0:01:37]} (13... Ng4 $14) 14. c5 {[%emt 0:00:12][%cal Bc4c5,Bc5d6,Bd6c7][%mdl 32] White is much more active.} Ne8 {[%emt 0:01:02] Loses the game.} (14... Ng4 $16) 15. Nb5 {[%emt 0:00:25]} Qe7 $2 {[%emt 0:01:47] [#]} (15... Kh7 {is a better chance.} 16. cxd6 c6) 16. Nxc7 $1 $18 {[%emt 0:00:07][%mdl 512] Strongly threatening cxd6. White is clearly winning.} Nxc7 {[%emt 0:00:28]} (16... Rb8 17. cxd6) 17. cxd6 {[%emt 0:00:03]} Qf6 {[%emt 0:00:32]} 18. dxc7 {[%emt 0:00:05]} Kh7 {[%emt 0:00:24]} 19. Bb5 {[%emt 0:00:16]} Qe7 {[%emt 0:01:02]} (19... Rf7 $142 20. Bc4 Ra6 21. Bxa6 Qxa6) 20. Bxd7 {[%emt 0:00:17]} Bxd7 {[%emt 0:00:03]} 21. Bc5 {[%emt 0:00:02]} Qf7 {[%emt 0:00:34]} 22. Bxf8 {[%emt 0:00:03]} Rxf8 {[%emt 0:00:01]} 23. Qc5 {[%emt 0:00:43][%csl LRa5,LRe5][%cal Oc5f8] [#] Threatens to win with Qxf8!} Bc6 {[%emt 0:00:54]} 24. Rd8 {[%emt 0:00:07] Weighted Error Value: White=0.16 (very precise) /Black=0.67.  Mistake:       	---       	Black=4      Inaccurate:     	White=1     	---        OK:         	White=7     	Black=1} 1-0

[Event "Grand Prix Romania 1st Stage 2024"]
[Site "Bucuresti"]
[Date "2024.03.24"]
[Round "5.18"]
[White "Dumitrescu, Daniel"]
[Black "Kuzubov, Yuriy"]
[Result "0-1"]
[ECO "E14"]
[WhiteElo "1997"]
[BlackElo "2605"]
[Annotator "TA"]
[PlyCount "64"]
[EventDate "2024.03.20"]
[EventType "swiss"]
[EventCountry "ROU"]
[SourceTitle "playchess.com"]
[Source "ChessBase"]
[SourceQuality "1"]
[TimeControl "900+5"]

{[%evp 19,63,-11,-11,-7,0,-10,-7,-58,-49,-45,-50,-53,-33,-25,-25,-25,-40,-28,-28,-55,-49,-47,-33,-113,-114,-116,-97,-156,-152,-179,-160,-363,-375,-465,-460,-812,-702,-878,-827,-844,-855,-788,-838,-883,-868,-29999]} 1. Nf3 {[%emt 0:00:03]} d5 {[%emt 0:00:01]} 2. d4 {[%emt 0:00:03]} e6 {[%emt 0:00:11]} 3. c4 {[%emt 0:00:24]} a6 {[%emt 0:00:05]} 4. e3 {[%emt 0:01:03]} Nf6 {[%emt 0:00:03]} 5. b3 {[%emt 0:00:03]} b6 {[%emt 0:00:50]} 6. Nc3 {[%emt 0:00:19]} Bb7 {[%emt 0:00:02]} 7. cxd5 {[%emt 0:00:10]} exd5 {[%emt 0:00:04]} 8. Bd3 {[%emt 0:00:13]} Nbd7 {[%emt 0:00:04]} 9. O-O {[%emt 0:00:15]} Bd6 {[%emt 0:00:03]} 10. Bb2 {[%emt 0:01:14]} O-O {[%emt 0:00:04]} 11. Rc1 {[%emt 0:00:08]} Re8 {[%emt 0:00:03]} 12. h3 {[%emt 0:03:26]} Ne4 {[%emt 0:00:08]} 13. Bxe4 {[%emt 0:03:11]} (13. Ne2 $11) 13... dxe4 $15 {[%emt 0:00:04]} 14. Nd2 {[%emt 0:00:01]} b5 {[%emt 0:00:48]} 15. a4 {[%emt 0:00:02]} b4 {[%emt 0:00:11]} 16. Ne2 {[%emt 0:00:13]} a5 {[%emt 0:00:20]} 17. Nc4 {[%emt 0:00:04]} Bf8 {[%emt 0:00:24]} 18. Nf4 {[%emt 0:00:37]} Nf6 {[%emt 0:01:02]} 19. Qc2 {[%emt 0:00:38]} Nd5 {[%emt 0:00:33]} 20. Ne2 {[%emt 0:01:35]} Bd6 {[%emt 0:00:35]} 21. Nxd6 {[%emt 0:00:55]} (21. Rfe1 $15) 21... cxd6 $17 {[%emt 0:00:03]} 22. Ng3 {[%emt 0:00:22]} Qe7 {[%emt 0:00:15]} 23. Qb1 {[%emt 0:00:11] [#]} ({White should try} 23. Qd1) 23... Qe6 $1 {[%emt 0:00:19]} 24. Ba1 {[%emt 0:00:36]} f5 {[%emt 0:00:16]} 25. Rc2 $2 {[%emt 0:00:28]} (25. Rfe1 $17) 25... Ba6 $19 {[%emt 0:00:04]} 26. Rd1 {[%emt 0:00:25]} Bd3 {[%emt 0:00:05][%cal Oa8c8]} 27. Rxd3 {[%emt 0:00:02]} (27. Kh2 $142) 27... exd3 {[%emt 0:00:03]} 28. Rd2 {[%emt 0:00:00]} f4 {[%emt 0:00:06]} 29. Nf1 {[%emt 0:00:31]} fxe3 {[%emt 0:00:03]} 30. fxe3 {[%emt 0:00:02]} Nxe3 {[%emt 0:00:04] [#] ...Rac8 would now be deadly.} 31. Qxd3 {[%emt 0:00:13]} Nxf1 {[%emt 0:00:03]} 32. Kxf1 {[%emt 0:00:02]} Qe1# {[%emt 0:00:02] Weighted Error Value: White=0.71/Black=0.02 (flawless) .  Loses game:     	White=1     	---        Mistake:       	White=4     	---        Inaccurate:     	White=1     	---        OK:         	White=8     	Black=10} 0-1

[Event "Grand Prix Romania 1st Stage 2024"]
[Site "Bucuresti"]
[Date "2024.03.24"]
[Round "5.19"]
[White "Brunello, Sabino"]
[Black "Ciocani, Iosif"]
[Result "1-0"]
[ECO "A09"]
[WhiteElo "2515"]
[BlackElo "2177"]
[Annotator "TA"]
[PlyCount "79"]
[EventDate "2024.03.20"]
[EventType "swiss"]
[EventCountry "ROU"]
[SourceTitle "playchess.com"]
[Source "ChessBase"]
[SourceQuality "1"]
[TimeControl "900+5"]

{[%evp 11,79,0,10,0,0,0,0,0,0,0,0,-6,56,56,62,61,75,69,116,87,74,79,250,27,26,0,0,-81,-78,-35,20,-65,0,0,73,67,414,300,281,281,270,0,4,4,83,10,151,16,70,59,80,65,515,481,537,495,1245,1407,1402,1458,2245,2083,29989,29989,29993,29994,29994,29995,29995,29992]} 1. c4 {[%emt 0:00:02]} Nf6 {[%emt 0:00:03]} 2. g3 {[%emt 0:00:01]} e6 {[%emt 0:00:02]} 3. Bg2 {[%emt 0:00:01]} d5 {[%emt 0:00:07][%cal Bd7d5,Bd5d4][%mdl 32]} 4. Nf3 {[%emt 0:00:01]} d4 {[%emt 0:00:07]} 5. d3 {[%emt 0:00:02]} c5 {[%emt 0:00:51]} 6. O-O {[%emt 0:00:08]} Nc6 {[%emt 0:00:18]} 7. e3 {[%emt 0:00:08]} Bd6 {[%emt 0:00:25]} 8. Na3 {[%emt 0:00:10]} O-O {[%emt 0:01:02]} 9. exd4 {[%emt 0:00:37] The position is equal.} cxd4 {[%emt 0:00:10]} 10. Nc2 {[%emt 0:00:02]} e5 {[%emt 0:02:49]} 11. b4 {[%emt 0:00:26]} Nxb4 {[%emt 0:01:33]} ({Black should try} 11... Re8 $11) 12. Nxb4 $14 {[%emt 0:00:02]} Bxb4 {[%emt 0:00:02]} 13. Nxe5 {[%emt 0:00:03]} Qa5 {[%emt 0:00:52]} 14. Rb1 {[%emt 0:00:12]} Bc3 {[%emt 0:01:13]} (14... Re8 $14 15. a3 Bc3) 15. Rb5 {[%emt 0:00:15]} (15. Bxb7 Bxb7 16. Rxb7 Qxe5 $17) 15... Qxa2 {[%emt 0:00:18]} 16. Bg5 {[%emt 0:00:02][%cal Og5f6] Bxf6! would now be deadly.} a6 $2 {[%emt 0:00:54]} (16... Qa6 $16) 17. Rb1 $2 {[%emt 0:03:41]} (17. Rxb7 $1 $18 Bxb7 18. Bxb7) 17... Qa5 $11 {[%emt 0:01:14]} 18. Bxf6 {[%emt 0:00:45]} (18. Bxb7 Bxb7 (18... Qxe5 $2 19. Bxf6 gxf6 20. Bxa8 $18) 19. Bxf6 gxf6 $11) 18... gxf6 {[%emt 0:00:02]} 19. Ng4 {[%emt 0:00:03]} (19. Nf3 $1 $11) 19... Qg5 $17 {[%emt 0:00:30]} 20. h3 {[%emt 0:00:14]} a5 {[%emt 0:00:26]} (20... f5 $15 21. Ne5 Qg7) 21. Qa4 {[%emt 0:01:10]} (21. Bxb7 $11 Rb8 22. Bxc8 Rfxc8 (22... Rxb1 23. Qxb1 Rxc8 24. Qb7 $16) 23. Qf3) 21... h5 {[%emt 0:01:15]} (21... f5 $15 22. Ne5 Qe7) 22. Rb5 $11 {[%emt 0:00:08]} Qg6 {[%emt 0:00:31]} (22... f5 $1 $11 23. Bxb7 hxg4 (23... Bxb7 24. Rxf5 Qg6 25. Nf6+ Kg7 26. Qb5 $11) 24. Bxa8 Bd7) 23. Rxh5 $1 $16 {[%emt 0:00:14] Rh6 is the strong threat.} (23. Bxb7 $2 Bxb7 $19) 23... f5 $2 {[%emt 0:00:04][%mdl 8192]} (23... Kg7 $1 $14 24. Qb5 Bd7) 24. Rh6 {[%emt 0:00:08]} Qg5 {[%emt 0:00:32]} 25. f4 {[%emt 0:01:11]} (25. Nf6+ Kg7 26. Rh7+ Kxf6 $19) 25... Qe7 {[%emt 0:00:02]} 26. Ne5 {[%emt 0:00:11]} (26. Nf6+ $18 Kg7 27. Qd1 (27. Nd5 Qe2 $11)) 26... Kg7 $1 $11 {[%emt 0:00:28] Black is weak on the light squares} 27. Rb6 $36 {[%emt 0:00:03][%mdl 2048] White has some pressure.} f6 {[%emt 0:00:20] [#]} (27... Ra6 $11 28. Rxa6 bxa6) 28. Nf3 {[%emt 0:00:02] White is much more active.} (28. Rfb1 $1 $16 {[%cal Rb6b7] Black must now prevent Rxb7.} Ra7 (28... fxe5 $2 29. Rxb7 Bxb7 30. Rxb7 $16) 29. Nf3) 28... Bd7 {[%emt 0:00:23]} (28... Ra6 $11 {keeps the balance.} 29. Rxa6 bxa6) 29. Qa2 {[%emt 0:00:15]} (29. Rxb7 $16 Rf7 30. Qd1 Qe3+ 31. Kh2) 29... Bc6 {[%emt 0:00:20]} (29... Rab8 $11) 30. Kh2 {[%emt 0:00:19]} Qd7 {[%emt 0:00:07]} 31. Rfb1 {[%emt 0:00:11][%cal Of3e5] aiming for Ne5!} a4 $2 {[%emt 0:00:06][%mdl 8192] [#]} (31... Bb4 $14) 32. Ne5 $1 $18 {[%emt 0:00:06][%mdl 512]} fxe5 {[%emt 0:00:25] [#]} 33. Bxc6 {[%emt 0:00:01]} Qd8 {[%emt 0:00:08]} (33... bxc6 $142 34. Rb7 (34. fxe5 $2 {loses.} Ra7 $19) 34... Rf7 35. Rxd7 (35. fxe5 $2 {perishes.} Qxb7 36. Kg2 Qe7 $19) 35... Rxd7) 34. Rxb7+ {[%emt 0:00:06][%cal Bb6b7,Bb7d7,Bd7d5][%mdl 32]} Kh6 {[%emt 0:00:02]} 35. Rd7 {[%emt 0:00:34]} Qf6 {[%emt 0:00:07]} 36. Bxa8 {[%emt 0:00:04] And now fxe5 would win.} Rxa8 {[%emt 0:00:07]} 37. fxe5 {[%emt 0:00:01] White mates.} Qxe5 {[%emt 0:00:05]} 38. Rb6+ {[%emt 0:00:03]} Kg5 {[%emt 0:00:03]} 39. Qf2 {[%emt 0:00:33]} Rg8 {[%emt 0:00:10]} 40. Rd5 {[%emt 0:00:11] Weighted Error Value: White=0.40/Black=0.78.  Loses game:     	---       	Black=3      Missed win:     	White=2     	---        Mistake:       	White=4     	Black=9      Inaccurate:     	White=1     	---        OK:         	White=9     	Black=6      Best:        	White=3     	Black=3      Strong:       	White=1     	Black=1      Brilliant:      	White=1     	---} 1-0

[Event "Grand Prix Romania 1st Stage 2024"]
[Site "Bucuresti"]
[Date "2024.03.24"]
[Round "5.20"]
[White "Sachilaru, Alexandru"]
[Black "Fridman, Daniel"]
[Result "0-1"]
[ECO "B07"]
[WhiteElo "2203"]
[BlackElo "2590"]
[Annotator "TA"]
[PlyCount "86"]
[EventDate "2024.03.20"]
[EventType "swiss"]
[EventCountry "ROU"]
[SourceTitle "playchess.com"]
[Source "ChessBase"]
[SourceQuality "1"]
[TimeControl "900+5"]

{[%evp 13,86,18,40,30,39,31,31,31,30,0,23,13,14,23,17,-12,-20,-19,-13,-8,-6,0,-4,-23,0,0,6,-20,-22,-23,-29,-40,-45,-56,0,-56,0,-47,-25,-13,0,0,0,0,0,0,0,0,0,0,0,0,0,0,0,0,0,0,0,-50,-41,-44,0,-133,-137,-194,-204,-375,-353,-29973,-29974,-29977,-29978,-29971,-29972]} 1. e4 {[%emt 0:00:03]} d6 {[%emt 0:00:02]} 2. d4 {[%emt 0:00:03]} Nf6 {[%emt 0:00:02]} 3. Nc3 {[%emt 0:00:03]} g6 {[%emt 0:00:01]} 4. Be3 {[%emt 0:00:05]} c6 {[%emt 0:00:02]} 5. Qd2 {[%emt 0:00:07]} b5 {[%emt 0:00:02]} 6. f3 {[%emt 0:00:28]} Nbd7 {[%emt 0:00:01]} 7. O-O-O {[%emt 0:00:33]} Qa5 {[%emt 0:00:19]} 8. Kb1 {[%emt 0:00:16]} Nb6 {[%emt 0:00:29] [#]} 9. Nd5 $1 {[%emt 0:01:20]} Qxd2 {[%emt 0:00:03]} 10. Nxf6+ {[%emt 0:00:02] White is slightly better.} exf6 {[%emt 0:00:01]} 11. Rxd2 {[%emt 0:00:01]} a6 {[%emt 0:00:02]} 12. b3 {[%emt 0:01:18]} f5 {[%emt 0:00:03]} 13. Bd3 {[%emt 0:00:29]} Bg7 {[%emt 0:00:02]} 14. Ne2 {[%emt 0:01:05]} fxe4 {[%emt 0:00:02]} 15. Bxe4 {[%emt 0:00:52]} Bd7 {[%emt 0:00:03]} 16. Bf4 {[%emt 0:00:53]} f5 {[%emt 0:01:39]} 17. Bd3 {[%emt 0:00:14]} Ke7 {[%emt 0:00:02]} 18. Re1 {[%emt 0:00:53]} Be6 {[%emt 0:00:02]} 19. Bg5+ {[%emt 0:01:32]} Bf6 {[%emt 0:00:01]} 20. Bxf6+ {[%emt 0:00:18]} Kxf6 {[%emt 0:00:02]} 21. Nf4 {[%emt 0:01:06]} Bf7 {[%emt 0:00:02]} 22. c3 {[%emt 0:00:39]} g5 {[%emt 0:00:06]} (22... Rhe8 {simplifies} 23. Rxe8 Rxe8 24. Re2 Rxe2 25. Bxe2 g5) 23. Nh3 {[%emt 0:00:18]} a5 {[%emt 0:01:25]} (23... Rae8 $15 24. Rxe8 Rxe8) 24. Kb2 {[%emt 0:00:00]} (24. g4 $11) 24... a4 {[%emt 0:00:02]} (24... Rhe8 $15 25. Rxe8 Bxe8 (25... Rxe8 26. Re2 $11)) 25. Rde2 {[%emt 0:01:07]} (25. g4 $1 $11 {feels stronger.}) 25... axb3 {[%emt 0:00:31]} 26. axb3 {[%emt 0:00:04]} Ra7 {[%emt 0:00:01] aiming for ...Rha8.} 27. f4 {[%emt 0:00:32]} h6 {[%emt 0:00:18] Hoping for ...g4.} (27... g4 $5 28. Ng5 $8 Bd5 29. Re6+ Bxe6 30. Rxe6+ Kg7 31. Bxf5 (31. Rxd6 Rha8 $11) 31... Nd5 $11) 28. g4 $1 {[%emt 0:00:52]} Rha8 {[%emt 0:00:14] ...Ra2+ is the strong threat. The board is on fire.} 29. Bxf5 {[%emt 0:00:44]} Ra2+ {[%emt 0:03:39]} 30. Kc1 {[%emt 0:00:40]} Rxe2 {[%emt 0:00:55]} 31. Rxe2 {[%emt 0:00:04]} Bxb3 {[%emt 0:00:01]} 32. fxg5+ {[%emt 0:00:08]} hxg5 {[%emt 0:00:02]} 33. Rf2 {[%emt 0:00:17] Bc2+ would now be deadly.} Kg7 {[%emt 0:00:22]} 34. Nxg5 {[%emt 0:00:16]} Ra1+ {[%emt 0:00:03]} 35. Bb1 {[%emt 0:00:08] Black must now prevent Kb2.} Bd5 {[%emt 0:00:10]} 36. h4 {[%emt 0:00:12]} ({White should play} 36. Kb2 $11 Ra4 37. Re2) 36... Na4 $15 {[%emt 0:00:39]} 37. Kc2 {[%emt 0:00:14]} Ra3 {[%emt 0:00:52]} (37... Nxc3 $5 38. Kxc3 Rxb1 $17) 38. Kd2 {[%emt 0:00:10]} (38. Re2 $11 {remains equal.}) 38... Nxc3 $17 {[%emt 0:00:07]} 39. Bc2 {[%emt 0:00:04]} (39. Bf5 $17 {was called for.}) 39... b4 $19 {[%emt 0:00:02][%cal Ob4b3]} 40. h5 $2 {[%emt 0:00:07]} (40. Rf1) 40... b3 {[%emt 0:00:14]} 41. Kxc3 {[%emt 0:00:07] [#]} (41. Bd3 $19 Ra2+ 42. Ke1) 41... bxc2+ {[%emt 0:00:02] Black mates.} 42. Kb2 {[%emt 0:00:02]} Ra2+ {[%emt 0:00:03]} 43. Kc1 {[%emt 0:00:01]} Ra1+ {[%emt 0:00:01] Weighted Error Value: White=0.43/Black=0.09 (flawless) .  Mistake:       	White=7     	Black=2      Inaccurate:     	White=3     	Black=2      OK:         	White=10    	Black=8      Best:        	White=2     	Black=6      Strong:       	White=1     	---} 0-1

[Event "Grand Prix Romania 1st Stage 2024"]
[Site "Bucuresti"]
[Date "2024.03.24"]
[Round "5.21"]
[White "Sandu, Mihaela"]
[Black "Bernadskiy, Vitaliy"]
[Result "1/2-1/2"]
[ECO "B03"]
[WhiteElo "2270"]
[BlackElo "2573"]
[Annotator "TA"]
[PlyCount "75"]
[EventDate "2024.03.20"]
[EventType "swiss"]
[EventCountry "ROU"]
[SourceTitle "playchess.com"]
[Source "ChessBase"]
[SourceQuality "1"]
[TimeControl "900+5"]

{[%evp 14,75,27,29,50,38,85,45,63,56,64,62,75,54,135,136,154,133,297,187,180,196,183,130,131,133,132,100,147,145,122,8,14,12,18,18,15,14,60,70,54,62,56,64,88,88,88,88,178,107,102,99,92,0,0,4,4,4,89,89,89,0,0,0]} 1. e4 {[%emt 0:00:04][%cal Be2e4,Be4e5][%mdl 32]} Nf6 {[%emt 0:00:04]} 2. e5 {[%emt 0:00:05]} Nd5 {[%emt 0:00:02]} 3. d4 {[%emt 0:00:04]} d6 {[%emt 0:00:02]} 4. c4 {[%emt 0:00:04]} Nb6 {[%emt 0:00:02]} 5. exd6 {[%emt 0:00:14]} exd6 {[%emt 0:00:07]} 6. Nc3 {[%emt 0:00:18]} Be7 {[%emt 0:00:02]} 7. Be3 {[%emt 0:00:46]} O-O {[%emt 0:00:03]} 8. Nf3 {[%emt 0:00:02]} Bg4 {[%emt 0:00:03]} 9. h3 {[%emt 0:00:06]} Bh5 {[%emt 0:00:09]} (9... Bxf3 $14 10. Qxf3 c6) 10. b3 {[%emt 0:00:07]} f5 {[%emt 0:00:36][%cal Bf7f5,Bf5f4][%mdl 32] Weiß steht etwas besser.} 11. Be2 {[%emt 0:00:29]} f4 {[%emt 0:00:06]} 12. Bc1 {[%emt 0:00:08]} Nc6 {[%emt 0:00:04]} 13. Bb2 {[%emt 0:00:08]} d5 {[%emt 0:00:45]} (13... Re8 $14) 14. c5 $1 $16 {[%emt 0:00:36]} Nc8 {[%emt 0:00:17]} 15. Nxd5 $1 {[%emt 0:00:21][%cal Od1d2]} b6 $2 {[%emt 0:00:03]} (15... Qxd5 $2 16. Bc4 Nb4 (16... Bxf3 $2 17. Qxf3 $18) 17. Bxd5+ $18) (15... Kh8 $16 {ist wohl besser.}) 16. O-O {[%emt 0:01:03][%cal Od1c1]} Kh8 {[%emt 0:00:44]} (16... Qxd5 $2 {verliert.} 17. Bc4 Nb4 (17... Bxf3 $2 18. Qxf3 $18) 18. Bxd5+ $18) 17. Nxe7 {[%emt 0:00:37]} N8xe7 {[%emt 0:00:03]} 18. Ng5 {[%emt 0:01:12]} ({Günstiger ist} 18. Re1 $18) 18... Bxe2 {[%emt 0:00:03]} 19. Qxe2 {[%emt 0:00:02] Und Qh5 würde nun gewinnen.} Qd5 {[%emt 0:00:25]} 20. Qg4 {[%emt 0:01:44] Ne6 ist eine echte Drohung.} Rf5 {[%emt 0:00:34]} (20... Rf6 $142) 21. h4 $1 {[%emt 0:00:46] Schwarz muss nun Rfe1 beachten.} h6 {[%emt 0:03:19] [#]} 22. Ne6 {[%emt 0:00:23]} Qxe6 $11 {[%emt 0:00:30] [#]} 23. d5 $1 $40 {[%emt 0:00:16][%csl Gb2][%cal Rg4g7][%mdl 128] Weiss hat einigen Angriff.} Ne5 {[%emt 0:00:25]} ({Schlechter ist} 23... Rxd5 24. Qxg7#) 24. Bxe5 $1 {[%emt 0:00:18]} Qxe5 {[%emt 0:00:59]} 25. Rae1 {[%emt 0:00:08]} Qxd5 {[%emt 0:00:32]} (25... Qf6 $11 26. Rxe7 Qxe7 27. Qxf5 Rf8) 26. Rxe7 $14 {[%emt 0:00:02]} Rf7 {[%emt 0:00:45]} 27. Rxf7 {[%emt 0:00:20]} Qxf7 {[%emt 0:00:02][%mdl 4096] Endspiel. KQR-KQR} 28. Rd1 {[%emt 0:00:48] Gegen Rd8 gerichtet.} bxc5 {[%emt 0:01:10]} 29. Rd7 {[%emt 0:00:14]} Qf6 {[%emt 0:00:19]} 30. Rxc7 {[%emt 0:00:03] Weiß hat aktiveres Spiel.} Re8 {[%emt 0:00:30]} (30... a6 $16) 31. Rxc5 {[%emt 0:01:18]} (31. Rxa7 $18 Kh7 32. Ra4) 31... Qa1+ $16 {[%emt 0:01:29]} 32. Kh2 {[%emt 0:00:02] Rc7 wäre nun fies.} Qxa2 {[%emt 0:00:02]} 33. Rc8 {[%emt 0:00:21]} ({Viel schwächer wäre} 33. Qxf4 Qxb3 34. Rf5 Kh7 $11) (33. Rc7 $16 {[%csl Gc7][%cal Rg4g7]} Rg8 34. Qxf4) 33... Rxc8 {[%emt 0:00:04]} 34. Qxc8+ {[%emt 0:00:02]} Kh7 {[%emt 0:00:02]} 35. Qf5+ {[%emt 0:00:03]} Kh8 {[%emt 0:00:04] [#]} (35... Kg8 $1 $11 {bleibt in der Remisbreite.}) 36. Qf8+ $1 {[%emt 0:00:14]} Kh7 {[%emt 0:00:01]} 37. Qf5+ {[%emt 0:00:02]} (37. Qxf4 $16 Qxb3 38. Qe4+ Kh8 39. Qa8+ Kh7 40. Qxa7) 37... Kh8 $11 {[%emt 0:00:02]} 38. Qf8+ {[%emt 0:00:02] Schwarz hat sich erfolgreich gewehrt.   Gewichteter Fehlerwert: Weiß=0.23 (präzise) /Schwarz=0.28 (präzise) .  Verlustzug:     	---       	Schwarz=1     Fehler:       	Weiß=5     	Schwarz=6     Ungenau:       	Weiß=2     	---        OK:         	Weiß=6     	Schwarz=10    Bester:       	Weiß=6     	Schwarz=3     Stark:        	Weiß=5     	---        Brilliant:      	Weiß=1     	---} 1/2-1/2